fUST/lending_fUST_20251127
["ID","MTS","AMOUNT","RATE_DAILY","PERIOD"]
[394974996,1764241847503,-500.0,5.153e-05,2]
[394974997,1764241847513,-500.0,5.153e-05,2]
[394974998,1764241847522,-500.0,5.153e-05,2]
[394974999,1764241847531,-430.80190134,5.153e-05,2]
[394975000,1764241847541,-500.0,5.153e-05,2]
[394975001,1764241847550,-500.0,5.153e-05,2]
[394975002,1764241847559,-500.0,5.153e-05,2]
[394975003,1764241847568,-500.0,5.153e-05,2]
[394975004,1764241847576,-151.0,5.153e-05,2]
[394975005,1764241847585,-151.0,5.153e-05,2]
[394975006,1764241847594,-500.0,5.153e-05,2]
[394975007,1764241847603,-247.9004018,5.153e-05,2]
[394975008,1764241847613,-500.0,5.153e-05,2]
[394975009,1764241847624,-500.0,5.153e-05,2]
[394975010,1764241847633,-500.0,5.153e-05,2]
[394975011,1764241847642,-1450.63346634,5.154e-05,2]
[394975012,1764241847686,-9161.0,5.154e-05,2]
[394975013,1764241852760,1000.0,0.0002,30]
[394975014,1764241852828,310.7657475,4.25e-05,2]
[394975017,1764241870057,1000.0,0.0002,30]
[394975018,1764241885959,1000.0,0.000215,120]
[394975019,1764241916426,1000.0,0.00013,13]
[394975023,1764242111933,574.12855637,0.000105,3]
[394975024,1764242111987,250.0,0.000105,3]
[394975025,1764242112150,2000.0,0.000105,3]
[394975026,1764242112532,595.37131296,0.000105,3]
[394975027,1764242112578,250.0,0.000105,3]
[394975028,1764242112772,2000.0,0.000105,3]
[394975029,1764242113143,250.0,0.000105,3]
[394975030,1764242113358,617.40005154,0.000105,3]
[394975031,1764242113426,2000.0,0.000105,3]
[394975032,1764242113774,250.0,0.000105,3]
[394975033,1764242114148,640.24385345,0.000105,3]
[394975034,1764242114217,2000.0,0.000105,3]
[394975035,1764242114404,250.0,0.000105,3]
[394975036,1764242114578,561.65629187,0.000105,3]
[394975037,1764242114687,2000.0,0.000105,3]
[394975038,1764242115057,250.0,0.000105,3]
[394975039,1764242115336,2000.0,0.000105,3]
[394975040,1764242115672,250.0,0.000105,3]
[394975041,1764242115941,2000.0,0.000105,3]
[394975042,1764242116284,322.9709449,0.000105,3]
[394975043,1764242116561,1008.34997512,0.000105,3]
[394975054,1764242327657,43213.61449448,5.054e-05,2]
[394975055,1764242327686,846786.38550552,5.054e-05,2]
[394975066,1764242497867,653213.61449448,5.054e-05,2]
[394975067,1764242514365,150.0,5.003e-05,2]
[394975085,1764242707654,2636.01738399,4.953e-05,2]
[394975086,1764242707679,7213.98261601,4.953e-05,2]
[394975095,1764242785566,1477.28,0.000215,120]
[394975125,1764243031752,-150.0,5.04e-05,2]
[394975126,1764243031762,-1154.0,5.052e-05,2]
[394975127,1764243031771,-300.0,5.052e-05,2]
[394975128,1764243031781,-774.21113858,5.053e-05,2]
[394975129,1764243031791,-500.0,5.053e-05,2]
[394975130,1764243031801,-500.0,5.053e-05,2]
[394975131,1764243031810,-500.0,5.053e-05,2]
[394975133,1764243031820,-500.0,5.053e-05,2]
[394975136,1764243031830,-500.0,5.053e-05,2]
[394975139,1764243031840,-500.0,5.053e-05,2]
[394975141,1764243031849,-405.10938347,5.053e-05,2]
[394975143,1764243031859,-500.0,5.053e-05,2]
[394975145,1764243031868,-500.0,5.053e-05,2]
[394975147,1764243031877,-577.25951057,5.053e-05,2]
[394975149,1764243031887,-500.0,5.053e-05,2]
[394975150,1764243031897,-500.0,5.053e-05,2]
[394975151,1764243031906,-468.72058912,5.053e-05,2]
[394975152,1764243031916,-500.0,5.053e-05,2]
[394975153,1764243031925,-500.0,5.053e-05,2]
[394975154,1764243031935,-500.0,5.053e-05,2]
[394975155,1764243031944,-500.0,5.053e-05,2]
[394975156,1764243031954,-500.0,5.053e-05,2]
[394975157,1764243031964,-500.0,5.053e-05,2]
[394975158,1764243031973,-500.0,5.053e-05,2]
[394975159,1764243031983,-500.0,5.053e-05,2]
[394975160,1764243031992,-500.0,5.053e-05,2]
[394975161,1764243032002,-635.04807778,5.053e-05,2]
[394975162,1764243032011,-500.0,5.053e-05,2]
[394975163,1764243032021,-500.0,5.053e-05,2]
[394975164,1764243032030,-500.0,5.053e-05,2]
[394975165,1764243032042,-500.0,5.053e-05,2]
[394975166,1764243032051,-500.0,5.053e-05,2]
[394975167,1764243032062,-500.0,5.053e-05,2]
[394975168,1764243032071,-500.0,5.053e-05,2]
[394975169,1764243032080,-94535.75328373,5.054e-05,2]
[394975209,1764243039898,-915.52853572,5.054e-05,2]
[394975210,1764243039909,-12151.14636648,5.054e-05,2]
[394975219,1764243045035,-8991.27050348,5.054e-05,2]
[394975220,1764243045046,-508.54553003,5.054e-05,2]
[394975221,1764243045215,-593.88865622,5.054e-05,2]
[394975222,1764243045227,-8237.35533875,5.054e-05,2]
[394975223,1764243045238,-6056.0,5.054e-05,2]
[394975233,1764243045847,-104796.89729111,5.054e-05,2]
[394975234,1764243045857,-462.963628,5.054e-05,2]
[394975235,1764243045867,-462.963628,5.054e-05,2]
[394975236,1764243045876,-462.963628,5.054e-05,2]
[394975237,1764243045885,-462.963628,5.054e-05,2]
[394975238,1764243045894,-510.22653441,5.133e-05,2]
[394975239,1764243045905,-500.0,5.133e-05,2]
[394975240,1764243045914,-500.0,5.133e-05,2]
[394975241,1764243045923,-435.54742185,5.133e-05,2]
[394975242,1764243045933,-500.0,5.133e-05,2]
[394975243,1764243045943,-599.68640276,5.133e-05,2]
[394975244,1764243045952,-500.0,5.133e-05,2]
[394975245,1764243045961,-500.0,5.133e-05,2]
[394975246,1764243045971,-500.0,5.133e-05,2]
[394975247,1764243045980,-500.0,5.133e-05,2]
[394975248,1764243045989,-502.35107951,5.133e-05,2]
[394975249,1764243045999,-500.0,5.133e-05,2]
[394975250,1764243046010,-170.86893309,5.133e-05,2]
[394975251,1764243046020,-293.31759866,5.133e-05,2]
[394975252,1764243046029,-500.0,5.133e-05,2]
[394975253,1764243046038,-516.78294985,5.133e-05,2]
[394975254,1764243046048,-500.0,5.133e-05,2]
[394975255,1764243046057,-500.79867649,5.133e-05,2]
[394975256,1764243046066,-500.0,5.133e-05,2]
[394975257,1764243046075,-5182.96755069,5.133e-05,2]
[394975258,1764243046084,-462.963628,5.133e-05,2]
[394975259,1764243046093,-462.963628,5.133e-05,2]
[394975260,1764243046102,-462.963628,5.133e-05,2]
[394975261,1764243046111,-462.963628,5.133e-05,2]
[394975262,1764243046121,-462.963628,5.133e-05,2]
[394975263,1764243046130,-462.963628,5.133e-05,2]
[394975264,1764243046139,-462.963628,5.133e-05,2]
[394975265,1764243046148,-462.963628,5.133e-05,2]
[394975266,1764243046158,-500.0,5.154e-05,2]
[394975267,1764243046167,-151.0,5.154e-05,2]
[394975268,1764243046177,-151.0,5.154e-05,2]
[394975269,1764243046186,-151.0,5.154e-05,2]
[394975270,1764243046195,-1000.0,5.154e-05,2]
[394975271,1764243046204,-1000.0,5.154e-05,2]
[394975272,1764243046213,-1000.0,5.154e-05,2]
[394975273,1764243046222,-1000.0,5.154e-05,2]
[394975274,1764243046231,-1000.0,5.154e-05,2]
[394975275,1764243046240,-1000.0,5.154e-05,2]
[394975276,1764243046249,-1000.0,5.154e-05,2]
[394975277,1764243046258,-1000.0,5.154e-05,2]
[394975279,1764243046267,-1000.0,5.154e-05,2]
[394975280,1764243046276,-1000.0,5.154e-05,2]
[394975282,1764243046287,-1000.0,5.154e-05,2]
[394975284,1764243046296,-1000.0,5.154e-05,2]
[394975285,1764243046305,-875.68049221,5.154e-05,2]
[394975286,1764243046314,-1000.0,5.154e-05,2]
[394975287,1764243046325,-1000.0,5.154e-05,2]
[394975288,1764243046334,-890.65202464,5.154e-05,2]
[394975289,1764243046343,-151.0,5.154e-05,2]
[394975290,1764243046353,-500.0,5.154e-05,2]
[394975291,1764243046367,-500.0,5.154e-05,2]
[394975292,1764243046376,-166.57493026,5.154e-05,2]
[394975293,1764243046385,-151.0,5.154e-05,2]
[394975294,1764243046394,-151.0,5.154e-05,2]
[394975295,1764243046405,-151.0,5.154e-05,2]
[394975296,1764243046415,-151.0,5.154e-05,2]
[394975297,1764243046425,-151.0,5.154e-05,2]
[394975298,1764243046670,-151.0,5.154e-05,2]
[394975299,1764243046681,-151.0,5.154e-05,2]
[394975300,1764243046690,-151.0,5.154e-05,2]
[394975301,1764243046699,-151.0,5.154e-05,2]
[394975302,1764243046708,-151.0,5.154e-05,2]
[394975303,1764243046717,-151.63089245,5.154e-05,2]
[394975304,1764243046726,-462.963628,5.154e-05,2]
[394975305,1764243046735,-462.963628,5.154e-05,2]
[394975306,1764243046744,-462.963628,5.154e-05,2]
[394975307,1764243046753,-462.963628,5.154e-05,2]
[394975308,1764243046763,-462.963628,5.154e-05,2]
[394975309,1764243046772,-462.963628,5.154e-05,2]
[394975310,1764243046781,-462.963628,5.154e-05,2]
[394975311,1764243046791,-462.963625,5.154e-05,2]
[394975312,1764243046801,-1000.0,5.155e-05,2]
[394975313,1764243046811,-1000.0,5.155e-05,2]
[394975314,1764243046820,-1000.0,5.155e-05,2]
[394975315,1764243046829,-1000.0,5.155e-05,2]
[394975316,1764243046839,-1000.0,5.155e-05,2]
[394975317,1764243046848,-1000.0,5.155e-05,2]
[394975318,1764243046857,-1000.0,5.155e-05,2]
[394975319,1764243046866,-1000.0,5.155e-05,2]
[394975320,1764243046875,-881.98693526,5.155e-05,2]
[394975321,1764243046884,-657.78396626,5.155e-05,2]
[394975322,1764243046894,-500.0,5.222e-05,2]
[394975323,1764243046903,-500.0,5.222e-05,2]
[394975324,1764243046912,-500.0,5.222e-05,2]
[394975325,1764243046921,-151.0,5.222e-05,2]
[394975326,1764243046930,-500.0,5.222e-05,2]
[394975327,1764243046939,-151.0,5.222e-05,2]
[394975328,1764243046948,-500.0,5.222e-05,2]
[394975329,1764243046957,-151.0,5.222e-05,2]
[394975330,1764243046969,-151.0,5.222e-05,2]
[394975331,1764243046978,-151.511978,5.222e-05,2]
[394975332,1764243046987,-500.0,5.223e-05,2]
[394975333,1764243046996,-641.72701092,5.223e-05,2]
[394975334,1764243047006,-500.0,5.223e-05,2]
[394975335,1764243047014,-151.0,5.244e-05,2]
[394975336,1764243047023,-151.0,5.244e-05,2]
[394975337,1764243047032,-151.0,5.244e-05,2]
[394975338,1764243047041,-151.0,5.244e-05,2]
[394975339,1764243047050,-151.0,5.244e-05,2]
[394975340,1764243047059,-151.0,5.244e-05,2]
[394975341,1764243047068,-151.0,5.253e-05,2]
[394975342,1764243047076,-200.0,5.253e-05,2]
[394975343,1764243047085,-500.0,5.262e-05,2]
[394975344,1764243047094,-151.0,5.262e-05,2]
[394975345,1764243047103,-151.17315112,5.262e-05,2]
[394975346,1764243047113,-500.0,5.262e-05,2]
[394975347,1764243047122,-151.0,5.262e-05,2]
[394975348,1764243047131,-152.33668155,5.262e-05,2]
[394975349,1764243047139,-151.0,5.262e-05,2]
[394975350,1764243047148,-151.0,5.262e-05,2]
[394975351,1764243047157,-151.0,5.262e-05,2]
[394975352,1764243047166,-151.0,5.262e-05,2]
[394975353,1764243047175,-151.0,5.291e-05,2]
[394975354,1764243047184,-500.0,5.291e-05,2]
[394975355,1764243047193,-500.0,5.291e-05,2]
[394975356,1764243047202,-151.0,5.291e-05,2]
[394975357,1764243047211,-198.82734352,5.291e-05,2]
[394975358,1764243047220,-151.0,5.291e-05,2]
[394975359,1764243047229,-151.0,5.291e-05,2]
[394975360,1764243047238,-151.0,5.343e-05,2]
[394975361,1764243047247,-151.0,5.343e-05,2]
[394975362,1764243047257,-296.512872,5.343e-05,2]
[394975363,1764243047266,-3253.94831136,5.353e-05,2]
[394975364,1764243047275,-500.0,5.359e-05,2]
[394975365,1764243047284,-500.72488881,5.359e-05,2]
[394975366,1764243047293,-500.98965846,5.359e-05,2]
[394975367,1764243047303,-151.0,5.359e-05,2]
[394975368,1764243047312,-501.83311072,5.359e-05,2]
[394975369,1764243047321,-151.0,5.359e-05,2]
[394975370,1764243047330,-500.0,5.359e-05,2]
[394975371,1764243047339,-151.0,5.359e-05,2]
[394975372,1764243047350,-151.0,5.39e-05,2]
[394975373,1764243047360,-500.0,5.399e-05,2]
[394975374,1764243047380,-151.0,5.399e-05,2]
[394975375,1764243047396,-500.0,5.399e-05,2]
[394975376,1764243047407,-151.0,5.399e-05,2]
[394975377,1764243047416,-151.0,5.399e-05,2]
[394975378,1764243047426,-500.0,5.428e-05,2]
[394975379,1764243047435,-151.0,5.428e-05,2]
[394975380,1764243047446,-226.00720925,5.428e-05,2]
[394975381,1764243047455,-500.0,5.428e-05,2]
[394975382,1764243047465,-190.72346932,5.428e-05,2]
[394975383,1764243047475,-151.0,5.428e-05,2]
[394975384,1764243047484,-1075.02,5.454e-05,2]
[394975385,1764243047493,-500.0,5.479e-05,2]
[394975386,1764243047502,-500.0,5.479e-05,2]
[394975387,1764243047511,-500.0,5.479e-05,2]
[394975388,1764243047521,-500.0,5.479e-05,2]
[394975389,1764243047530,-463.31571758,5.479e-05,2]
[394975390,1764243047539,-213.0334343,5.496e-05,2]
[394975391,1764243047548,-151.0,5.496e-05,2]
[394975392,1764243047557,-151.0,5.496e-05,2]
[394975393,1764243047566,-500.0,5.496e-05,2]
[394975394,1764243047575,-289.50127665,5.527e-05,2]
[394975395,1764243047584,-500.0,5.536e-05,2]
[394975396,1764243047593,-151.0,5.536e-05,2]
[394975397,1764243047602,-500.0,5.536e-05,2]
[394975398,1764243047611,-198.81226654,5.536e-05,2]
[394975399,1764243047620,-420.0,5.557e-05,2]
[394975400,1764243047629,-153.57,5.56e-05,2]
[394975401,1764243047638,-151.0,5.565e-05,2]
[394975402,1764243047647,-500.0,5.565e-05,2]
[394975403,1764243047656,-151.0,5.565e-05,2]
[394975404,1764243047665,-153.57,5.565e-05,2]
[394975405,1764243047674,-153.57,5.571e-05,2]
[394975406,1764243047684,-151.0,5.633e-05,2]
[394975407,1764243047694,-151.54986302,5.633e-05,2]
[394975408,1764243047704,-500.0,5.633e-05,2]
[394975409,1764243047714,-534.16279763,5.673e-05,2]
[394975410,1764243047723,-261.61576856,5.673e-05,2]
[394975411,1764243047732,-308.94157316,5.673e-05,2]
[394975412,1764243047742,-225.39248114,5.681e-05,2]
[394975413,1764243047751,-1000.0,5.681e-05,2]
[394975414,1764243047760,-1000.0,5.681e-05,2]
[394975415,1764243047769,-1000.0,5.681e-05,2]
[394975416,1764243047780,-349.66510751,5.681e-05,2]
[394975417,1764243047789,-1000.0,5.681e-05,2]
[394975418,1764243047799,-581.66602038,5.681e-05,2]
[394975419,1764243047808,-624.82972195,5.681e-05,2]
[394975420,1764243047817,-1102.96137039,5.681e-05,2]
[394975421,1764243047826,-1000.0,5.681e-05,2]
[394975422,1764243047837,-500.0,5.681e-05,2]
[394975423,1764243047848,-500.0,5.702e-05,2]
[394975424,1764243047857,-211.3500307,5.702e-05,2]
[394975425,1764243047866,-204.17933027,5.702e-05,2]
[394975426,1764243047875,-203.26058549,5.702e-05,2]
[394975427,1764243047883,-151.0,5.77e-05,2]
[394975428,1764243047892,-500.0,5.77e-05,2]
[394975429,1764243047901,-1000.0,5.771e-05,2]
[394975430,1764243047910,-1000.0,5.771e-05,2]
[394975431,1764243047919,-245.0,5.907e-05,2]
[394975432,1764243047928,-292.59428423,5.907e-05,2]
[394975433,1764243047937,-500.0,5.976e-05,2]
[394975434,1764243047945,-414.0,6.001e-05,2]
[394975435,1764243047954,-587.0,6.113e-05,2]
[394975436,1764243047963,-762.05460276,6.228e-05,2]
[394975437,1764243047972,-224.32314333,6.228e-05,2]
[394975438,1764243047981,-1500.0,6.228e-05,2]
[394975439,1764243047990,-1500.0,6.228e-05,2]
[394975440,1764243048000,-1500.0,6.228e-05,2]
[394975441,1764243048008,-500.0,6.25e-05,2]
[394975442,1764243048017,-361.53656836,6.318e-05,2]
[394975443,1764243048027,-619.45855489,6.318e-05,2]
[394975444,1764243048035,-182.37385543,6.356e-05,2]
[394975445,1764243048044,-500.0,6.524e-05,2]
[394975446,1764243048053,-823.0,6.724e-05,2]
[394975447,1764243048062,-868.215815,6.776e-05,2]
[394975448,1764243048071,-2000.0,6.776e-05,2]
[394975449,1764243048080,-1803.23536926,6.776e-05,2]
[394975450,1764243048089,-500.0,6.798e-05,2]
[394975451,1764243048098,-176.78590362,6.877e-05,2]
[394975452,1764243048107,-318.21462652,6.942e-05,2]
[394975453,1764243048116,-177.0,7.04e-05,2]
[394975454,1764243048125,-500.0,7.072e-05,2]
[394975455,1764243048134,-300.0,7.132e-05,2]
[394975456,1764243048143,-300.0,7.132e-05,2]
[394975457,1764243048152,-300.0,7.132e-05,2]
[394975458,1764243048162,-300.0,7.132e-05,2]
[394975459,1764243048171,-300.0,7.132e-05,2]
[394975460,1764243048180,-300.0,7.132e-05,2]
[394975461,1764243048189,-300.0,7.132e-05,2]
[394975462,1764243048198,-300.0,7.132e-05,2]
[394975463,1764243048208,-300.0,7.132e-05,2]
[394975464,1764243048217,-300.0,7.132e-05,2]
[394975465,1764243048227,-300.0,7.132e-05,2]
[394975466,1764243048236,-300.0,7.132e-05,2]
[394975467,1764243048246,-300.0,7.132e-05,2]
[394975468,1764243048255,-300.0,7.132e-05,2]
[394975469,1764243048264,-300.0,7.132e-05,2]
[394975470,1764243048274,-600.0,7.132e-05,2]
[394975471,1764243048283,-2500.0,7.324e-05,2]
[394975472,1764243048293,-500.0,7.346e-05,2]
[394975473,1764243048302,-1152.0,7.397e-05,2]
[394975474,1764243048311,-500.0,7.62e-05,2]
[394975475,1764243048320,-5182.96755066,7.685e-05,2]
[394975476,1764243048330,-720.0,7.845e-05,2]
[394975477,1764243048339,-318.91121316,7.872e-05,2]
[394975478,1764243048350,-500.0,7.894e-05,2]
[394975479,1764243048361,-952.0,8.136e-05,2]
[394975480,1764243048371,-500.0,8.168e-05,2]
[394975481,1764243048381,-280.28206731,8.219e-05,2]
[394975482,1764243048390,-151.0,8.219e-05,2]
[394975483,1764243048399,-151.0,8.219e-05,2]
[394975484,1764243048409,-152.093735,8.219e-05,2]
[394975485,1764243048418,-558.171817,8.219e-05,2]
[394975486,1764243048427,-558.171817,8.219e-05,2]
[394975487,1764243048437,-558.171817,8.219e-05,2]
[394975488,1764243048447,-558.171817,8.219e-05,2]
[394975489,1764243048456,-558.171817,8.219e-05,2]
[394975490,1764243048465,-558.171817,8.219e-05,2]
[394975491,1764243048474,-558.171817,8.219e-05,2]
[394975492,1764243048483,-558.171817,8.219e-05,2]
[394975493,1764243048493,-558.171817,8.219e-05,2]
[394975494,1764243048502,-558.171817,8.219e-05,2]
[394975495,1764243048511,-558.171817,8.219e-05,2]
[394975496,1764243048520,-558.171817,8.219e-05,2]
[394975497,1764243048530,-558.171817,8.219e-05,2]
[394975498,1764243048539,-558.171817,8.219e-05,2]
[394975499,1764243048547,-558.171817,8.219e-05,2]
[394975500,1764243048556,-558.171817,8.219e-05,2]
[394975501,1764243048565,-558.171817,8.219e-05,2]
[394975502,1764243048574,-558.171817,8.219e-05,2]
[394975503,1764243048583,-558.171817,8.219e-05,2]
[394975504,1764243048591,-558.171809,8.219e-05,2]
[394975505,1764243048600,-437.90805363,8.442e-05,2]
[394975506,1764243048609,-864.0,8.63e-05,2]
[394975507,1764243048618,-414.0,9.001e-05,2]
[394975508,1764243048627,-204.0,9.04e-05,2]
[394975509,1764243048636,-150.0,9.289e-05,2]
[394975510,1764243048645,-150.141,9.289e-05,2]
[394975511,1764243048654,-150.319,9.289e-05,2]
[394975512,1764243048663,-250.0,9.3e-05,2]
[394975513,1764243048672,-1000.0,9.493e-05,2]
[394975514,1764243048681,-5182.96755066,0.00010138,2]
[394975515,1764243048690,-1000.0,0.00010442,2]
[394975516,1764243048699,-244.0,0.00010442,2]
[394975517,1764243048708,-209.40437684,0.00010499,3]
[394975518,1764243048716,-260.1330637,0.00010499,3]
[394975519,1764243048726,-209.40437684,0.00010499,3]
[394975520,1764243048734,-217.15233878,0.00010499,3]
[394975521,1764243048744,-225.18697532,0.00010499,3]
[394975522,1764243048753,-233.51889341,0.00010499,3]
[394975523,1764243048762,-2000.0,0.00010499,3]
[394975524,1764243048771,-500.0,0.00010499,3]
[394975525,1764243048780,-242.15909246,0.00010499,3]
[394975526,1764243048789,-2000.0,0.00010499,3]
[394975527,1764243048797,-500.0,0.00010499,3]
[394975528,1764243048806,-251.11897888,0.00010499,3]
[394975529,1764243048815,-1098.01426306,0.00010499,3]
[394975530,1764243048824,-500.0,0.00010499,3]
[394975531,1764243048832,-260.4103811,0.00010499,3]
[394975532,1764243048841,-500.0,0.00010499,3]
[394975533,1764243048850,-270.0455652,0.00010499,3]
[394975534,1764243048859,-280.03725112,0.00010499,3]
[394975535,1764243048868,-500.0,0.00010499,3]
[394975536,1764243048876,-500.0,0.00010499,3]
[394975537,1764243048885,-500.0,0.00010499,3]
[394975538,1764243048894,-500.0,0.00010499,3]
[394975539,1764243048903,-500.0,0.00010499,3]
[394975540,1764243048912,-290.39862941,0.00010499,3]
[394975541,1764243048921,-500.0,0.00010499,3]
[394975542,1764243048930,-500.0,0.00010499,3]
[394975543,1764243048939,-301.1433787,0.00010499,3]
[394975544,1764243048948,-500.0,0.00010499,3]
[394975545,1764243048957,-500.0,0.00010499,3]
[394975546,1764243048967,-318.04858259,0.00010499,3]
[394975547,1764243048975,-500.0,0.00010499,3]
[394975548,1764243048985,-500.0,0.00010499,3]
[394975549,1764243048994,-333.0,0.00010665,2]
[394975550,1764243049003,-500.0,0.00010958,2]
[394975551,1764243049012,-572.17372625,0.00010958,2]
[394975552,1764243049021,-151.0,0.00010959,2]
[394975553,1764243049030,-151.431845,0.00010959,2]
[394975554,1764243049039,-500.0,0.00010959,2]
[394975555,1764243049048,-500.0,0.00010959,2]
[394975556,1764243049057,-587.82901908,0.00010959,2]
[394975557,1764243049066,-500.0,0.00010959,2]
[394975558,1764243049075,-500.0,0.00010959,2]
[394975559,1764243049084,-500.0,0.00010959,2]
[394975560,1764243049093,-500.0,0.00010959,2]
[394975561,1764243049102,-500.0,0.00010959,2]
[394975562,1764243049112,-500.0,0.00010959,2]
[394975563,1764243049121,-500.0,0.00010959,2]
[394975564,1764243049130,-500.0,0.00010959,2]
[394975565,1764243049139,-500.0,0.00010959,2]
[394975566,1764243049148,-500.0,0.00010959,2]
[394975567,1764243049157,-500.0,0.00010959,2]
[394975568,1764243049166,-500.0,0.00010959,2]
[394975569,1764243049175,-500.0,0.00010959,2]
[394975570,1764243049184,-500.0,0.00010959,2]
[394975571,1764243049193,-500.0,0.00010959,2]
[394975572,1764243049202,-500.0,0.00010959,2]
[394975573,1764243049211,-500.0,0.00010959,2]
[394975574,1764243049220,-500.0,0.00010959,2]
[394975575,1764243049229,-500.0,0.00010959,2]
[394975576,1764243049238,-500.0,0.00010959,2]
[394975577,1764243049247,-500.0,0.00010959,2]
[394975578,1764243049256,-500.0,0.00010959,2]
[394975579,1764243049265,-500.0,0.00010959,2]
[394975580,1764243049274,-500.0,0.00010959,2]
[394975581,1764243049283,-500.0,0.00010959,2]
[394975582,1764243049292,-500.0,0.00010959,2]
[394975583,1764243049301,-500.0,0.00010959,2]
[394975584,1764243049311,-500.0,0.00010959,2]
[394975585,1764243049320,-500.0,0.00010959,2]
[394975586,1764243049329,-500.0,0.00010959,2]
[394975587,1764243049338,-500.0,0.00010959,2]
[394975588,1764243049348,-500.0,0.00010959,2]
[394975589,1764243049357,-500.0,0.00010959,2]
[394975590,1764243049369,-391.9019859,0.00010959,2]
[394975591,1764243049378,-500.0,0.00010959,2]
[394975592,1764243049387,-500.0,0.00010959,2]
[394975593,1764243049396,-500.0,0.00010959,2]
[394975594,1764243049406,-461.76837919,0.00010959,2]
[394975595,1764243049415,-500.0,0.00010959,2]
[394975596,1764243049425,-500.0,0.00010959,2]
[394975597,1764243049434,-500.0,0.00010959,2]
[394975598,1764243049446,-500.0,0.00010959,2]
[394975599,1764243049455,-500.0,0.00010959,2]
[394975600,1764243049464,-500.0,0.00010959,2]
[394975601,1764243049473,-500.0,0.00010959,2]
[394975602,1764243049482,-500.0,0.00010959,2]
[394975603,1764243049492,-500.0,0.00010959,2]
[394975604,1764243049501,-500.0,0.00010959,2]
[394975605,1764243049510,-500.0,0.00010959,2]
[394975606,1764243049520,-500.0,0.00010959,2]
[394975607,1764243049529,-500.0,0.00010959,2]
[394975608,1764243049538,-500.0,0.00010959,2]
[394975609,1764243049547,-500.0,0.00010959,2]
[394975610,1764243049556,-500.0,0.00010959,2]
[394975611,1764243049565,-500.0,0.00010959,2]
[394975612,1764243049574,-500.0,0.00010959,2]
[394975613,1764243049584,-500.0,0.00010959,2]
[394975614,1764243049593,-500.0,0.00010959,2]
[394975615,1764243049602,-500.0,0.00010959,2]
[394975616,1764243049611,-627.32640455,0.00010959,2]
[394975617,1764243049620,-627.32640455,0.00010959,2]
[394975618,1764243049631,-627.32640455,0.00010959,2]
[394975619,1764243049641,-627.32640455,0.00010959,2]
[394975620,1764243049649,-627.32640455,0.00010959,2]
[394975621,1764243049659,-627.32640455,0.00010959,2]
[394975622,1764243049668,-627.32640455,0.00010959,2]
[394975623,1764243049677,-627.32640455,0.00010959,2]
[394975624,1764243049686,-627.32640455,0.00010959,2]
[394975625,1764243049695,-627.32640455,0.00010959,2]
[394975626,1764243049704,-627.32640455,0.00010959,2]
[394975627,1764243049712,-627.32640455,0.00010959,2]
[394975628,1764243049721,-627.32640455,0.00010959,2]
[394975629,1764243049730,-627.32640455,0.00010959,2]
[394975630,1764243049739,-627.32640455,0.00010959,2]
[394975631,1764243049748,-627.32640455,0.00010959,2]
[394975632,1764243049757,-627.32640455,0.00010959,2]
[394975633,1764243049765,-627.32640455,0.00010959,2]
[394975634,1764243049775,-627.32640455,0.00010959,2]
[394975635,1764243049784,-627.32640455,0.00010959,2]
[394975636,1764243049793,-627.32640455,0.00010959,2]
[394975637,1764243049802,-627.32640455,0.00010959,2]
[394975638,1764243049811,-627.32640455,0.00010959,2]
[394975639,1764243049819,-627.32640455,0.00010959,2]
[394975640,1764243049828,-627.32640455,0.00010959,2]
[394975641,1764243049837,-627.32640455,0.00010959,2]
[394975642,1764243049846,-627.32640455,0.00010959,2]
[394975643,1764243049856,-627.32640455,0.00010959,2]